[Event "Live Chess"]
[Site "Chess.com"]
[Date "2023.05.20"]
[Round "-"]
[White "KeithArkell"]
[Black "LaupMiths"]
[Result "1-0"]
[WhiteElo "2611"]
[BlackElo "1821"]
[TimeControl "300"]
[EndTime "10:34:30 PDT"]
[Termination "KeithArkell won by resignation"]

1. d4 {[%clk 0:04:57.8]} 1... d5 {[%clk 0:04:55.2]} 2. c4 {[%clk 0:04:56.4]}
2... e6 {[%clk 0:04:50.5]} 3. cxd5 {[%clk 0:04:55]} 3... exd5 {[%clk 0:04:49]}
4. Nf3 {[%clk 0:04:54.3]} 4... c5 {[%clk 0:04:47]} 5. Nc3 {[%clk 0:04:52.9]}
5... Nf6 {[%clk 0:04:36]} 6. Bg5 {[%clk 0:04:51.4]} 6... Nc6 {[%clk 0:04:34.2]}
7. g3 {[%clk 0:04:48.9]} 7... cxd4 {[%clk 0:04:30.1]} 8. Nxd4 {[%clk 0:04:47.6]}
8... Bc5 {[%clk 0:04:28.5]} 9. Nxc6 {[%clk 0:04:45.5]} 9... bxc6 {[%clk
0:04:26.8]} 10. e3 {[%clk 0:04:37.5]} 10... O-O {[%clk 0:04:24.1]} 11. Bg2
{[%clk 0:04:36.7]} 11... Re8 {[%clk 0:04:12.7]} 12. O-O {[%clk 0:04:35.1]} 12...
Be6 {[%clk 0:04:11.4]} 13. Rc1 {[%clk 0:04:33.3]} 13... Bb6 {[%clk 0:04:10]} 14.
Na4 {[%clk 0:04:32.2]} 14... Rc8 {[%clk 0:04:04.9]} 15. Nc5 {[%clk 0:04:30.8]}
15... Qd6 {[%clk 0:04:00.1]} 16. Bxf6 {[%clk 0:04:23.2]} 16... gxf6 {[%clk
0:03:58.4]} 17. b4 {[%clk 0:04:20]} 17... Bxc5 {[%clk 0:03:52.4]} 18. Rxc5
{[%clk 0:04:18.1]} 18... Rb8 {[%clk 0:03:48.6]} 19. a3 {[%clk 0:04:16.3]} 19...
Bd7 {[%clk 0:03:36.5]} 20. Qd4 {[%clk 0:04:13.5]} 20... Re5 {[%clk 0:03:34.8]}
21. Rfc1 {[%clk 0:04:10.8]} 21... Rbe8 {[%clk 0:03:32.3]} 22. h4 {[%clk
0:04:09.7]} 22... Re4 {[%clk 0:03:18.3]} 23. Bxe4 {[%clk 0:04:07.7]} 23... Rxe4
{[%clk 0:03:17.8]} 24. Qd3 {[%clk 0:04:02]} 24... Rg4 {[%clk 0:03:16.4]} 25. Kg2
{[%clk 0:03:58.4]} 25... Qe5 {[%clk 0:03:07.9]} 26. Rxc6 {[%clk 0:03:43.5]}
26... Bxc6 {[%clk 0:03:00.2]} 27. Rxc6 {[%clk 0:03:43.4]} 27... Kg7 {[%clk
0:02:36.1]} 28. Rc5 {[%clk 0:03:38.2]} 28... Qh5 {[%clk 0:02:28.5]} 29. Rxd5
{[%clk 0:03:34.3]} 29... Qxh4 {[%clk 0:02:26.4]} 30. Rd4 {[%clk 0:03:25.2]}
30... Qg5 {[%clk 0:02:17]} 31. Rxg4 {[%clk 0:03:23.1]} 31... Qxg4 {[%clk
0:02:15.8]} 32. b5 {[%clk 0:03:21]} 32... Qa4 {[%clk 0:02:10]} 33. f3 {[%clk
0:03:00]} 33... h5 {[%clk 0:02:03.5]} 34. Kh3 {[%clk 0:02:56.9]} 34... Qa5
{[%clk 0:01:58.5]} 35. g4 {[%clk 0:02:51.2]} 35... hxg4+ {[%clk 0:01:56.5]} 36.
Kxg4 {[%clk 0:02:50.3]} 36... Qe1 {[%clk 0:01:55.7]} 37. f4 {[%clk 0:02:26.3]}
37... Qg1+ {[%clk 0:01:45.7]} 38. Kf3 {[%clk 0:02:25.1]} 38... Qh1+ {[%clk
0:01:44.1]} 39. Kf2 {[%clk 0:02:23.5]} 39... Qh2+ {[%clk 0:01:41.2]} 40. Kf3
{[%clk 0:02:22.8]} 40... Qh1+ {[%clk 0:01:40]} 41. Ke2 {[%clk 0:02:22]} 41...
Qg2+ {[%clk 0:01:29.1]} 42. Ke1 {[%clk 0:02:21]} 42... Qg1+ {[%clk 0:01:26.9]}
43. Kd2 {[%clk 0:02:19.9]} 43... Qg2+ {[%clk 0:01:24]} 44. Kc3 {[%clk
0:02:17.5]} 44... Qa2 {[%clk 0:01:22.1]} 45. Kb4 {[%clk 0:02:14.8]} 45... Qb2+
{[%clk 0:01:13.6]} 46. Ka5 {[%clk 0:02:12.3]} 46... Qc1 {[%clk 0:01:04]} 47. Ka6
{[%clk 0:02:07.6]} 47... Qc7 {[%clk 0:01:03.3]} 48. Qd4 {[%clk 0:02:05.6]} 48...
Qc8+ {[%clk 0:01:01.5]} 49. Kxa7 {[%clk 0:02:04.4]} 49... Qc7+ {[%clk
0:01:00.1]} 50. Ka6 {[%clk 0:02:03.8]} 50... Qc8+ {[%clk 0:00:58.8]} 51. Ka5
{[%clk 0:02:03]} 51... Qc7+ {[%clk 0:00:56.2]} 52. b6 {[%clk 0:02:01.5]} 52...
Qc1 {[%clk 0:00:45.7]} 53. a4 {[%clk 0:01:58.7]} 53... Qe1+ {[%clk 0:00:43.7]}
54. Ka6 {[%clk 0:01:57.4]} 54... Qe2+ {[%clk 0:00:39.6]} 55. Ka7 {[%clk
0:01:56.6]} 55... Qg2 {[%clk 0:00:33.4]} 56. b7 {[%clk 0:01:53.9]} 56... Qc6
{[%clk 0:00:22.5]} 57. b8=Q {[%clk 0:01:50.9]} 1-0

[Event "Live Chess"]
[Site "Chess.com"]
[Date "2023.05.20"]
[Round "-"]
[White "BillW-GrangerIN"]
[Black "chessleanstrategist"]
[Result "1/2-1/2"]
[WhiteElo "265"]
[BlackElo "405"]
[TimeControl "300"]
[EndTime "10:34:31 PDT"]
[Termination "Game drawn by repetition"]

1. d4 {[%clk 0:04:55.7]} 1... Nf6 {[%clk 0:04:57.8]} 2. Bf4 {[%clk 0:04:51.4]}
2... d6 {[%clk 0:04:53]} 3. Nf3 {[%clk 0:04:46.5]} 3... g6 {[%clk 0:04:50.5]} 4.
e3 {[%clk 0:04:36.3]} 4... Nc6 {[%clk 0:04:48.3]} 5. Bd3 {[%clk 0:04:30.4]} 5...
Bg7 {[%clk 0:04:40.8]} 6. O-O {[%clk 0:04:27]} 6... O-O {[%clk 0:04:39.7]} 7. c3
{[%clk 0:04:14.4]} 7... Bg4 {[%clk 0:04:39.1]} 8. Nbd2 {[%clk 0:04:03.4]} 8...
Re8 {[%clk 0:04:25.5]} 9. Qe2 {[%clk 0:03:56]} 9... e5 {[%clk 0:04:14]} 10. dxe5
{[%clk 0:03:45.2]} 10... dxe5 {[%clk 0:04:01.4]} 11. Bxg6 {[%clk 0:03:14.9]}
11... fxg6 {[%clk 0:03:46.3]} 12. h3 {[%clk 0:03:12.3]} 12... Bc8 {[%clk
0:03:21.6]} 13. Ng5 {[%clk 0:02:54.1]} 13... exf4 {[%clk 0:03:14.5]} 14. Nde4
{[%clk 0:02:21.5]} 14... Nxe4 {[%clk 0:02:50.9]} 15. Qc4+ {[%clk 0:02:10.9]}
15... Be6 {[%clk 0:01:36.4]} 16. Nxe6 {[%clk 0:02:01.7]} 16... Rxe6 {[%clk
0:01:36]} 17. Qxe6+ {[%clk 0:01:57.8]} 17... Kh8 {[%clk 0:01:35.6]} 18. Qxe4
{[%clk 0:01:49]} 18... Qe7 {[%clk 0:01:04.7]} 19. Qxf4 {[%clk 0:01:32.9]} 19...
Rf8 {[%clk 0:00:54.5]} 20. Qc4 {[%clk 0:01:19.7]} 20... Ne5 {[%clk 0:00:47.6]}
21. Qb5 {[%clk 0:01:13]} 21... b6 {[%clk 0:00:44.1]} 22. Qa6 {[%clk 0:01:06.2]}
22... Nc6 {[%clk 0:00:35.5]} 23. Qc4 {[%clk 0:01:00.2]} 23... Ne5 {[%clk
0:00:27.7]} 24. Qd5 {[%clk 0:00:53.8]} 24... Rd8 {[%clk 0:00:20.8]} 25. Qb7
{[%clk 0:00:47.9]} 25... Rd2 {[%clk 0:00:13.8]} 26. Qxa7 {[%clk 0:00:45.6]}
26... Rxb2 {[%clk 0:00:11.8]} 27. Qa8+ {[%clk 0:00:41.2]} 27... Qf8 {[%clk
0:00:07]} 28. Qa7 {[%clk 0:00:37.7]} 28... Qe7 {[%clk 0:00:03.2]} 29. Qa8+
{[%clk 0:00:35.6]} 29... Qf8 {[%clk 0:00:02]} 30. Qa7 {[%clk 0:00:34]} 30... Qe7
{[%clk 0:00:01]} 1/2-1/2

[Event "Live Chess"]
[Site "Chess.com"]
[Date "2023.05.20"]
[Round "-"]
[White "HD_IN4k"]
[Black "1600x"]
[Result "0-1"]
[WhiteElo "325"]
[BlackElo "1480"]
[TimeControl "300"]
[EndTime "10:34:33 PDT"]
[Termination "1600x won on time"]

1. d4 {[%clk 0:04:53.9]} 1... d5 {[%clk 0:04:58.5]} 2. c4 {[%clk 0:04:34.5]}
2... e6 {[%clk 0:04:41.9]} 3. Nc3 {[%clk 0:04:31.6]} 3... Nc6 {[%clk 0:04:31.3]}
4. Nf3 {[%clk 0:04:21]} 4... Bb4 {[%clk 0:04:19.7]} 5. a3 {[%clk 0:04:14.6]}
5... Bxc3+ {[%clk 0:04:17.5]} 6. bxc3 {[%clk 0:04:12.3]} 6... h6 {[%clk
0:04:14.6]} 7. a4 {[%clk 0:04:00.7]} 7... Nf6 {[%clk 0:04:12.2]} 8. cxd5 {[%clk
0:03:45]} 8... exd5 {[%clk 0:04:04.5]} 9. Ba3 {[%clk 0:03:37]} 9... Ne4 {[%clk
0:04:00.4]} 10. e3 {[%clk 0:03:23.1]} 10... Be6 {[%clk 0:03:56.7]} 11. Ne5
{[%clk 0:02:55.2]} 11... Nxe5 {[%clk 0:03:52.2]} 12. Bb5+ {[%clk 0:02:52.7]}
12... Nd7 {[%clk 0:03:50.4]} 13. f3 {[%clk 0:02:11]} 13... Nxc3 {[%clk
0:03:45.8]} 14. Bxd7+ {[%clk 0:01:57.5]} 14... Qxd7 {[%clk 0:03:38.3]} 15. Qb3
{[%clk 0:01:51.2]} 15... Nxa4 {[%clk 0:03:35.3]} 16. Qxb7 {[%clk 0:01:33.4]}
16... Rc8 {[%clk 0:03:33.4]} 17. O-O {[%clk 0:01:23.2]} 17... a5 {[%clk
0:03:30.1]} 18. Rfb1 {[%clk 0:00:56.3]} 18... Nb6 {[%clk 0:02:48.3]} 19. Qa7
{[%clk 0:00:25]} 19... Nc4 {[%clk 0:02:27.2]} 20. Rb8 {[%clk 0:00:18.9]} 20...
f6 {[%clk 0:02:01.6]} 21. Rxc8+ {[%clk 0:00:16.6]} 21... Qxc8 {[%clk 0:02:00.6]}
22. Bc5 {[%clk 0:00:11.7]} 22... Bf5 {[%clk 0:01:58.7]} 23. Rb1 {[%clk 0:00:11]}
23... Bxb1 {[%clk 0:01:57.3]} 0-1

[Event "Live Chess"]
[Site "Chess.com"]
[Date "2023.05.20"]
[Round "-"]
[White "mliszewski"]
[Black "garyjc"]
[Result "1-0"]
[WhiteElo "1897"]
[BlackElo "1025"]
[TimeControl "300"]
[EndTime "10:34:36 PDT"]
[Termination "mliszewski won by checkmate"]

1. d4 {[%clk 0:04:59.3]} 1... Nf6 {[%clk 0:04:55.9]} 2. Bg5 {[%clk 0:04:58.5]}
2... h6 {[%clk 0:04:53.7]} 3. Bxf6 {[%clk 0:04:57.7]} 3... gxf6 {[%clk
0:04:50.6]} 4. e3 {[%clk 0:04:57.6]} 4... d6 {[%clk 0:04:49.5]} 5. g3 {[%clk
0:04:48]} 5... Bf5 {[%clk 0:04:48.1]} 6. Bg2 {[%clk 0:04:46.4]} 6... c6 {[%clk
0:04:42.3]} 7. Ne2 {[%clk 0:04:45]} 7... e6 {[%clk 0:04:35.1]} 8. O-O {[%clk
0:04:43.6]} 8... d5 {[%clk 0:04:32.5]} 9. Nf4 {[%clk 0:04:39.8]} 9... Nd7 {[%clk
0:04:18]} 10. Nd2 {[%clk 0:04:38.4]} 10... Qb6 {[%clk 0:03:57.7]} 11. b3 {[%clk
0:04:24.2]} 11... O-O-O {[%clk 0:03:43.3]} 12. c4 {[%clk 0:04:22.5]} 12... e5
{[%clk 0:03:40.3]} 13. dxe5 {[%clk 0:04:20.2]} 13... fxe5 {[%clk 0:03:37.4]} 14.
Ne2 {[%clk 0:04:15.1]} 14... e4 {[%clk 0:03:33.9]} 15. Nd4 {[%clk 0:04:10.2]}
15... Bh7 {[%clk 0:03:22.8]} 16. cxd5 {[%clk 0:04:07.6]} 16... cxd5 {[%clk
0:03:18.3]} 17. Rc1+ {[%clk 0:04:07]} 17... Kb8 {[%clk 0:03:14.6]} 18. Qh5
{[%clk 0:03:51.9]} 18... Nf6 {[%clk 0:03:02.2]} 19. Qe5+ {[%clk 0:03:39.1]}
19... Rd6 {[%clk 0:02:45.9]} 20. Bh3 {[%clk 0:03:14.8]} 20... Bg7 {[%clk
0:02:11.1]} 21. Rc3 {[%clk 0:02:45.1]} 21... Rg8 {[%clk 0:02:08.2]} 22. Rfc1
{[%clk 0:02:40.8]} 22... Ng4 {[%clk 0:02:03.2]} 23. Bxg4 {[%clk 0:02:25.8]}
23... Bxe5 {[%clk 0:02:00.3]} 24. Rc8+ {[%clk 0:02:24.2]} 24... Rxc8 {[%clk
0:01:53.2]} 25. Rxc8# {[%clk 0:02:24.1]} 1-0

[Event "Live Chess"]
[Site "Chess.com"]
[Date "2023.05.20"]
[Round "-"]
[White "martynstanley"]
[Black "Delacorta"]
[Result "0-1"]
[WhiteElo "986"]
[BlackElo "1393"]
[TimeControl "300"]
[EndTime "10:34:58 PDT"]
[Termination "Delacorta won by checkmate"]

1. d4 {[%clk 0:04:57.7]} 1... e6 {[%clk 0:04:58.6]} 2. e3 {[%clk 0:04:57]} 2...
f5 {[%clk 0:04:56.3]} 3. Bd3 {[%clk 0:04:56.2]} 3... Nf6 {[%clk 0:04:55.1]} 4.
f4 {[%clk 0:04:55.4]} 4... d5 {[%clk 0:04:53.8]} 5. Nf3 {[%clk 0:04:54.4]} 5...
Be7 {[%clk 0:04:49]} 6. O-O {[%clk 0:04:53.5]} 6... O-O {[%clk 0:04:48]} 7. Ne5
{[%clk 0:04:52.5]} 7... Nbd7 {[%clk 0:04:43.9]} 8. c3 {[%clk 0:04:51]} 8... Nxe5
{[%clk 0:04:41.1]} 9. fxe5 {[%clk 0:04:50.2]} 9... Ne4 {[%clk 0:04:40.1]} 10.
Nd2 {[%clk 0:04:48.9]} 10... Bd7 {[%clk 0:04:38.4]} 11. Rf3 {[%clk 0:04:47.1]}
11... Be8 {[%clk 0:04:36.9]} 12. Bc2 {[%clk 0:04:44.5]} 12... Bh5 {[%clk
0:04:35]} 13. Nxe4 {[%clk 0:04:42]} 13... fxe4 {[%clk 0:04:32.2]} 14. Bxe4
{[%clk 0:04:39.1]} 14... Bxf3 {[%clk 0:04:23.7]} 15. gxf3 {[%clk 0:04:34.8]}
15... dxe4 {[%clk 0:04:21.9]} 16. fxe4 {[%clk 0:04:33.6]} 16... Bh4 {[%clk
0:04:17.9]} 17. Qg4 {[%clk 0:04:32]} 17... Qg5 {[%clk 0:04:15.9]} 18. h3 {[%clk
0:04:28.6]} 18... Qxg4+ {[%clk 0:04:14.2]} 19. hxg4 {[%clk 0:04:28.1]} 19... Rf3
{[%clk 0:04:12.1]} 20. Bd2 {[%clk 0:04:26.2]} 20... Raf8 {[%clk 0:04:10.5]} 21.
Re1 {[%clk 0:04:23.1]} 21... Bxe1 {[%clk 0:04:06.8]} 22. Bxe1 {[%clk 0:04:21.8]}
22... Rf1+ {[%clk 0:04:05.6]} 23. Kg2 {[%clk 0:04:20.6]} 23... Rxe1 {[%clk
0:04:04.7]} 24. d5 {[%clk 0:04:19.8]} 24... exd5 {[%clk 0:04:02.3]} 25. exd5
{[%clk 0:04:18]} 25... Rxe3 {[%clk 0:03:59.8]} 26. e6 {[%clk 0:04:17]} 26... Rd8
{[%clk 0:03:55.4]} 27. c4 {[%clk 0:04:16.2]} 27... b5 {[%clk 0:03:53.7]} 28. b3
{[%clk 0:04:15.3]} 28... bxc4 {[%clk 0:03:52.5]} 29. bxc4 {[%clk 0:04:14.7]}
29... Kf8 {[%clk 0:03:51.1]} 30. Kf2 {[%clk 0:04:13.1]} 30... Re5 {[%clk
0:03:48.3]} 31. Kf3 {[%clk 0:04:11.2]} 31... Ke7 {[%clk 0:03:47.1]} 32. Kf4
{[%clk 0:04:10.4]} 32... Re1 {[%clk 0:03:45.9]} 33. a4 {[%clk 0:04:09.1]} 33...
Rf8+ {[%clk 0:03:44.3]} 34. Kg5 {[%clk 0:04:07.3]} 34... Rc1 {[%clk 0:03:42.6]}
35. Kh5 {[%clk 0:04:03.2]} 35... Kf6 {[%clk 0:03:31.1]} 36. g5+ {[%clk
0:03:58.6]} 36... Ke7 {[%clk 0:03:28]} 37. g6 {[%clk 0:03:56.7]} 37... hxg6+
{[%clk 0:03:23.6]} 38. Kxg6 {[%clk 0:03:56]} 38... Rxc4 {[%clk 0:03:21.2]} 39.
Kxg7 {[%clk 0:03:53.8]} 39... Rd4 {[%clk 0:03:19.3]} 40. d6+ {[%clk 0:03:52.4]}
40... cxd6 {[%clk 0:03:17.7]} 41. a5 {[%clk 0:03:51.3]} 41... Rg4+ {[%clk
0:03:13.6]} 42. Kh7 {[%clk 0:03:48.5]} 42... Rf1 {[%clk 0:03:12]} 43. a6 {[%clk
0:03:47.2]} 43... Rh1# {[%clk 0:03:11.1]} 0-1

[Event "Live Chess"]
[Site "Chess.com"]
[Date "2023.05.20"]
[Round "-"]
[White "birdseed45"]
[Black "smoggyrabbit"]
[Result "1-0"]
[WhiteElo "1841"]
[BlackElo "1612"]
[TimeControl "300"]
[EndTime "10:34:58 PDT"]
[Termination "birdseed45 won by checkmate"]

1. e4 {[%clk 0:04:58.3]} 1... e6 {[%clk 0:04:58.5]} 2. d4 {[%clk 0:04:55.4]}
2... d5 {[%clk 0:04:57.7]} 3. Nc3 {[%clk 0:04:52.5]} 3... Nf6 {[%clk 0:04:55.9]}
4. e5 {[%clk 0:04:49.1]} 4... Nfd7 {[%clk 0:04:54.9]} 5. f4 {[%clk 0:04:47.5]}
5... c5 {[%clk 0:04:52.6]} 6. Nf3 {[%clk 0:04:46.8]} 6... Nc6 {[%clk 0:04:51.3]}
7. Be2 {[%clk 0:04:44.1]} 7... b6 {[%clk 0:04:11.8]} 8. O-O {[%clk 0:04:40.8]}
8... Bb7 {[%clk 0:04:04.4]} 9. Be3 {[%clk 0:04:36.8]} 9... cxd4 {[%clk
0:03:57.2]} 10. Nxd4 {[%clk 0:04:35.3]} 10... Bc5 {[%clk 0:03:37.8]} 11. Nxc6
{[%clk 0:04:31.9]} 11... Bxe3+ {[%clk 0:03:36.4]} 12. Kh1 {[%clk 0:04:28.7]}
12... Bxc6 {[%clk 0:03:35.5]} 13. Qd3 {[%clk 0:04:23.7]} 13... Bc5 {[%clk
0:03:24.5]} 14. Qg3 {[%clk 0:04:16.1]} 14... O-O {[%clk 0:03:10.4]} 15. f5
{[%clk 0:04:09.8]} 15... Qc7 {[%clk 0:02:55.6]} 16. f6 {[%clk 0:04:06.2]} 16...
Qxe5 {[%clk 0:02:49.5]} 17. Qxg7# {[%clk 0:04:03.8]} 1-0

[Event "Live Chess"]
[Site "Chess.com"]
[Date "2023.05.20"]
[Round "-"]
[White "NatashaRegan"]
[Black "Singapourfeuj"]
[Result "0-1"]
[WhiteElo "1883"]
[BlackElo "2251"]
[TimeControl "300"]
[EndTime "10:34:59 PDT"]
[Termination "Singapourfeuj won by resignation"]

1. Nf3 {[%clk 0:04:55.9]} 1... Nf6 {[%clk 0:04:58.6]} 2. c4 {[%clk 0:04:54.5]}
2... g6 {[%clk 0:04:57.9]} 3. b4 {[%clk 0:04:51.8]} 3... Bg7 {[%clk 0:04:57.1]}
4. Bb2 {[%clk 0:04:50.8]} 4... a5 {[%clk 0:04:56.3]} 5. b5 {[%clk 0:04:49.2]}
5... O-O {[%clk 0:04:55.6]} 6. g3 {[%clk 0:04:47.6]} 6... d5 {[%clk 0:04:54.8]}
7. cxd5 {[%clk 0:04:44.8]} 7... Qxd5 {[%clk 0:04:53.1]} 8. Nc3 {[%clk
0:04:38.7]} 8... Qh5 {[%clk 0:04:51.7]} 9. Bg2 {[%clk 0:04:35.7]} 9... a4 {[%clk
0:04:50.8]} 10. Rc1 {[%clk 0:04:26.1]} 10... a3 {[%clk 0:04:45.4]} 11. Ba1
{[%clk 0:04:24.5]} 11... c6 {[%clk 0:04:44.7]} 12. b6 {[%clk 0:04:21.6]} 12...
Bh3 {[%clk 0:04:42.9]} 13. Bxh3 {[%clk 0:04:07.2]} 13... Qxh3 {[%clk 0:04:40.7]}
14. Qb3 {[%clk 0:03:58.1]} 14... Nbd7 {[%clk 0:04:38.8]} 15. e3 {[%clk
0:03:42.7]} 15... Qg2 {[%clk 0:04:36.2]} 16. Rg1 {[%clk 0:03:40.8]} 16... Qxf3
{[%clk 0:04:34.8]} 17. Ne2 {[%clk 0:03:35.8]} 17... Ne4 {[%clk 0:04:29.4]} 18.
Rf1 {[%clk 0:03:29.5]} 18... Ndc5 {[%clk 0:04:27.1]} 19. Qc4 {[%clk 0:03:20.9]}
19... Rfd8 {[%clk 0:04:24.6]} 20. Nd4 {[%clk 0:03:02.7]} 20... Qh5 {[%clk
0:04:16]} 21. f3 {[%clk 0:02:50.5]} 21... Ra4 {[%clk 0:04:14.6]} 22. Qe2 {[%clk
0:02:40.6]} 22... Nd6 {[%clk 0:04:07.4]} 23. g4 {[%clk 0:02:26.4]} 23... Qh4+
{[%clk 0:04:06]} 24. Kd1 {[%clk 0:02:24.7]} 24... Bxd4 {[%clk 0:03:59.9]} 25.
Bxd4 {[%clk 0:02:19.6]} 25... Ne6 {[%clk 0:03:58.4]} 26. Be5 {[%clk 0:02:15.7]}
26... Nb5 {[%clk 0:03:54.5]} 27. Bg3 {[%clk 0:02:01.1]} 27... Qh6 {[%clk
0:03:53]} 28. f4 {[%clk 0:01:57.4]} 28... Qg7 {[%clk 0:03:48.4]} 29. f5 {[%clk
0:01:54.7]} 29... Ng5 {[%clk 0:03:47.1]} 30. h4 {[%clk 0:01:48.3]} 30... Ne4
{[%clk 0:03:45.8]} 31. Bf4 {[%clk 0:01:31.9]} 31... Qb2 {[%clk 0:03:40.8]} 32.
Rc2 {[%clk 0:01:25.8]} 0-1

[Event "Live Chess"]
[Site "Chess.com"]
[Date "2023.05.20"]
[Round "-"]
[White "booktrunk"]
[Black "HoarseyHorsey"]
[Result "0-1"]
[WhiteElo "1358"]
[BlackElo "1399"]
[TimeControl "300"]
[EndTime "10:35:05 PDT"]
[Termination "HoarseyHorsey won by checkmate"]

1. d4 {[%clk 0:04:56.2]} 1... Nf6 {[%clk 0:04:59]} 2. Nf3 {[%clk 0:04:51.6]}
2... d5 {[%clk 0:04:58.1]} 3. Bf4 {[%clk 0:04:50.1]} 3... c5 {[%clk 0:04:53.3]}
4. e3 {[%clk 0:04:47.4]} 4... Nc6 {[%clk 0:04:52.3]} 5. dxc5 {[%clk 0:04:43.6]}
5... Bg4 {[%clk 0:04:48.7]} 6. h3 {[%clk 0:04:41.5]} 6... Bh5 {[%clk 0:04:47.4]}
7. g4 {[%clk 0:04:40.4]} 7... Bg6 {[%clk 0:04:46.2]} 8. Nh4 {[%clk 0:04:38.2]}
8... e6 {[%clk 0:04:43.5]} 9. Nxg6 {[%clk 0:04:36.8]} 9... hxg6 {[%clk
0:04:43.4]} 10. Be2 {[%clk 0:04:31.3]} 10... Bxc5 {[%clk 0:04:40.5]} 11. O-O
{[%clk 0:04:29.3]} 11... Rxh3 {[%clk 0:04:38.1]} 12. Kg2 {[%clk 0:04:18.5]}
12... Rh7 {[%clk 0:04:33.3]} 13. Nc3 {[%clk 0:04:12.7]} 13... Ke7 {[%clk
0:04:23.7]} 14. Bd3 {[%clk 0:04:08.8]} 14... Bd6 {[%clk 0:04:16.9]} 15. Bg5
{[%clk 0:04:03.7]} 15... Qh8 {[%clk 0:03:30.4]} 16. Rh1 {[%clk 0:03:57.6]} 16...
Rh2+ {[%clk 0:03:26.8]} 17. Rxh2 {[%clk 0:03:55.6]} 17... Qxh2+ {[%clk 0:03:25]}
18. Kf3 {[%clk 0:03:54.5]} 18... Qh3+ {[%clk 0:03:19.7]} 19. Ke2 {[%clk
0:03:52.4]} 19... Qxg4+ {[%clk 0:03:18.4]} 20. f3 {[%clk 0:03:51.8]} 20... Qxg5
{[%clk 0:03:01.2]} 21. Qh1 {[%clk 0:03:48.6]} 21... Nb4 {[%clk 0:02:26.5]} 22.
Nb5 {[%clk 0:03:39.2]} 22... Nxd3 {[%clk 0:02:21.3]} 23. Kxd3 {[%clk 0:03:38.1]}
23... Qf5+ {[%clk 0:02:15.8]} 24. Kd2 {[%clk 0:03:36.2]} 24... Bb4+ {[%clk
0:02:06.8]} 25. c3 {[%clk 0:03:32.9]} 25... Ba5 {[%clk 0:02:00.2]} 26. b4 {[%clk
0:03:30.9]} 26... Bb6 {[%clk 0:01:58.6]} 27. a4 {[%clk 0:03:28.5]} 27... a6
{[%clk 0:01:54.7]} 28. Na3 {[%clk 0:03:26.1]} 28... Rc8 {[%clk 0:01:46.8]} 29.
b5 {[%clk 0:03:23]} 29... a5 {[%clk 0:01:37.2]} 30. Rc1 {[%clk 0:03:19]} 30...
Nd7 {[%clk 0:01:28.9]} 31. Nc2 {[%clk 0:03:15.8]} 31... Ne5 {[%clk 0:01:23.7]}
32. f4 {[%clk 0:03:09.8]} 32... Nc4+ {[%clk 0:01:21.2]} 33. Ke2 {[%clk
0:03:07.7]} 33... Qg4+ {[%clk 0:01:15.7]} 34. Kd3 {[%clk 0:03:04]} 34... Nb2+
{[%clk 0:01:00]} 35. Kd2 {[%clk 0:02:59.6]} 35... Nxa4 {[%clk 0:00:54.3]} 36.
Rg1 {[%clk 0:02:54.3]} 36... Qf5 {[%clk 0:00:49.3]} 37. Nd4 {[%clk 0:02:52.5]}
37... Qe4 {[%clk 0:00:30.1]} 38. Rc1 {[%clk 0:02:45.9]} 38... Qxh1 {[%clk
0:00:25.6]} 39. Rxh1 {[%clk 0:02:44.3]} 39... Rxc3 {[%clk 0:00:21.4]} 40. Rc1
{[%clk 0:02:41]} 40... Rxc1 {[%clk 0:00:19.7]} 41. Kxc1 {[%clk 0:02:39.8]} 41...
Bxd4 {[%clk 0:00:18.9]} 42. exd4 {[%clk 0:02:38.9]} 42... f6 {[%clk 0:00:17.4]}
43. Kc2 {[%clk 0:02:36.9]} 43... b6 {[%clk 0:00:16.4]} 44. Kb3 {[%clk
0:02:35.5]} 44... g5 {[%clk 0:00:14.6]} 45. fxg5 {[%clk 0:02:33.1]} 45... fxg5
{[%clk 0:00:14.5]} 46. Kxa4 {[%clk 0:02:32.5]} 46... g4 {[%clk 0:00:14]} 47. Kb3
{[%clk 0:02:31.2]} 47... g3 {[%clk 0:00:13.9]} 48. Kc2 {[%clk 0:02:30.9]} 48...
g2 {[%clk 0:00:13.8]} 49. Kd3 {[%clk 0:02:30.7]} 49... g1=Q {[%clk 0:00:13.7]}
50. Ke2 {[%clk 0:02:30]} 50... Qg3 {[%clk 0:00:13.2]} 51. Kf1 {[%clk 0:02:28.5]}
51... Qf4+ {[%clk 0:00:13.1]} 52. Ke2 {[%clk 0:02:27.5]} 52... Qe4+ {[%clk
0:00:13]} 53. Kd2 {[%clk 0:02:26.6]} 53... g5 {[%clk 0:00:12.9]} 54. Kc3 {[%clk
0:02:24.6]} 54... g4 {[%clk 0:00:12.8]} 55. Kb3 {[%clk 0:02:24]} 55... g3 {[%clk
0:00:12.7]} 56. Ka4 {[%clk 0:02:23.6]} 56... g2 {[%clk 0:00:12.6]} 57. Ka3
{[%clk 0:02:23.2]} 57... g1=Q {[%clk 0:00:12.5]} 58. Kb3 {[%clk 0:02:22.7]}
58... Qg3+ {[%clk 0:00:12.4]} 59. Ka4 {[%clk 0:02:21.3]} 59... Qxd4# {[%clk
0:00:11.8]} 0-1

[Event "Live Chess"]
[Site "Chess.com"]
[Date "2023.05.20"]
[Round "-"]
[White "domrobson"]
[Black "LL220284LL"]
[Result "0-1"]
[WhiteElo "1742"]
[BlackElo "2406"]
[TimeControl "300"]
[EndTime "10:35:05 PDT"]
[Termination "LL220284LL won by resignation"]

1. d4 {[%clk 0:04:58.8]} 1... f5 {[%clk 0:04:59.1]} 2. c4 {[%clk 0:04:57.3]}
2... Nf6 {[%clk 0:04:58.5]} 3. g3 {[%clk 0:04:56.9]} 3... e6 {[%clk 0:04:57.1]}
4. Bg2 {[%clk 0:04:56.6]} 4... Be7 {[%clk 0:04:56.5]} 5. Nf3 {[%clk 0:04:56.2]}
5... O-O {[%clk 0:04:56]} 6. O-O {[%clk 0:04:55.8]} 6... d6 {[%clk 0:04:55]} 7.
b3 {[%clk 0:04:55.4]} 7... Nbd7 {[%clk 0:04:54]} 8. Bb2 {[%clk 0:04:55]} 8...
Rb8 {[%clk 0:04:53]} 9. Nbd2 {[%clk 0:04:54.4]} 9... b6 {[%clk 0:04:52.1]} 10.
e3 {[%clk 0:04:52.1]} 10... Bb7 {[%clk 0:04:51.5]} 11. Ne1 {[%clk 0:04:51.7]}
11... Bxg2 {[%clk 0:04:48.9]} 12. Nxg2 {[%clk 0:04:51.6]} 12... Qe8 {[%clk
0:04:48]} 13. f3 {[%clk 0:04:50.8]} 13... Rf7 {[%clk 0:04:44.8]} 14. e4 {[%clk
0:04:50.3]} 14... Bf8 {[%clk 0:04:41.2]} 15. Qc2 {[%clk 0:04:46.4]} 15... g6
{[%clk 0:04:39.5]} 16. f4 {[%clk 0:04:44.9]} 16... Bg7 {[%clk 0:04:37.3]} 17. e5
{[%clk 0:04:44]} 17... Ng4 {[%clk 0:04:33.2]} 18. Qd3 {[%clk 0:04:40.3]} 18...
dxe5 {[%clk 0:04:29.2]} 19. dxe5 {[%clk 0:04:37.9]} 19... Rd8 {[%clk 0:04:28.4]}
20. Qf3 {[%clk 0:04:36.2]} 20... Nc5 {[%clk 0:04:24.9]} 21. Bc3 {[%clk
0:04:30.1]} 21... Rd3 {[%clk 0:04:22.9]} 0-1